bitfinex/quotes_SOLUSD_20250305
["timestamp","ask_amount","ask_price","bid_price","bid_amount"]
[1741157607794,32.55428556,143.69,143.68,2.0]
[1741157607995,32.55428556,143.7,143.68,2.0]
[1741157608402,32.55428556,143.69,143.67,2.0]
[1741157608608,32.55428556,143.68,143.67,2.0]
[1741157610193,32.55428556,143.69,143.66,2.0]
[1741157610394,32.55428556,143.69,143.68,2.0]
[1741157610595,39.51378556,143.69,143.67,2.0]
[1741157610816,32.55428556,143.68,143.67,2.0]
[1741157611513,32.55428556,143.68,143.66,2.0]
[1741157611818,32.55428556,143.69,143.67,2.0]
[1741157612714,32.55428556,143.68,143.67,2.0]
[1741157614617,20.41559493,143.68,143.67,2.0]
[1741157616296,27.37499493,143.69,143.68,2.0]
[1741157616502,102.21559493,143.73,143.72,2.0]
[1741157616714,81.8,143.73,143.72,2.0]
[1741157617102,102.21559493,143.73,143.72,2.0]
[1741157617926,102.21559493,143.73,143.72,1.5]
[1741157618416,0.28432314,143.72,143.68,1.5]
[1741157618623,20.41559493,143.69,143.68,1.5]
[1741157619816,20.41559493,143.7,143.69,1.5]
[1741157620129,102.21559493,143.71,143.7,1.5]
[1741157620728,121.4073853,143.71,143.7,1.5]
[1741157621319,121.4073853,143.71,143.7,1.0]
[1741157622011,39.6073853,143.71,143.7,1.0]
[1741157622211,39.6073853,143.71,143.69,1.0]
[1741157622517,32.6489853,143.7,143.69,1.0]
[1741157623830,32.6489853,143.71,143.7,1.0]
[1741157625741,39.6073853,143.71,143.7,1.0]
[1741157630232,39.6073853,143.71,143.69,1.0]
[1741157630435,32.6489853,143.7,143.69,1.0]
[1741157630638,32.6489853,143.7,143.68,1.0]
[1741157630835,32.6489853,143.69,143.67,1.0]
[1741157631038,32.6489853,143.68,143.67,1.0]
[1741157631334,32.6489853,143.68,143.66,0.033]
[1741157631531,114.4489853,143.67,143.66,0.033]
[1741157631930,114.73330844,143.67,143.66,0.033]
[1741157632434,39.89360844,143.67,143.66,0.033]
[1741157633439,39.6092853,143.67,143.66,1.033]
[1741157634139,39.6092853,143.67,143.66,0.033]
[1741157634316,39.89360844,143.67,143.66,0.033]
[1741157634936,39.6092853,143.67,143.66,0.033]
[1741157635119,32.6489853,143.67,143.66,1.033]
[1741157635542,39.6089853,143.68,143.66,1.033]
[1741157635837,39.6089853,143.68,143.67,1.0]
[1741157639738,39.6079853,143.7,143.68,1.0]
[1741157639946,39.6079853,143.7,143.69,1.0]
[1741157642549,27.36984443,143.7,143.69,1.0]
[1741157651666,6.9579,143.73,143.69,1.0]
[1741157651833,6.9579,143.73,143.71,1.0]
[1741157652150,20.41084443,143.72,143.71,1.0]
[1741157652749,20.41084443,143.72,143.7,1.0]
[1741157652957,20.41084443,143.71,143.69,1.0]
[1741157653262,20.41084443,143.7,143.69,1.0]
[1741157654936,20.41084443,143.7,143.67,1.0]
[1741157655135,27.37074443,143.68,143.67,1.0]
[1741157658061,82.08432314,143.67,143.66,0.033]
[1741157658247,0.28432314,143.66,143.62,1.0]
[1741157658563,20.41084443,143.64,143.63,1.0]
[1741157659148,81.8,143.65,143.64,1.0]
[1741157660164,109.17214443,143.65,143.64,1.0]
[1741157660456,109.17214443,143.65,143.63,1.0]
[1741157662240,20.41084443,143.64,143.63,1.0]
[1741157662463,20.41084443,143.64,143.62,1.0]
[1741157662762,20.41084443,143.63,143.62,1.0]
[1741157663145,20.41084443,143.64,143.62,1.0]
[1741157663547,20.41084443,143.63,143.6,1.033]
[1741157663751,27.37414443,143.61,143.6,1.033]
[1741157664166,27.37414443,143.61,143.6,0.033]
[1741157664663,27.65846757,143.61,143.6,1.033]
[1741157665174,27.65846757,143.61,143.6,0.033]
[1741157665670,27.65846757,143.61,143.6,1.033]
[1741157665671,20.41084443,143.61,143.6,1.033]
[1741157665856,81.8,143.62,143.61,1.0]
[1741157666262,27.37224443,143.65,143.64,1.0]
[1741157666956,109.17184443,143.66,143.64,1.0]
[1741157667184,109.17184443,143.66,143.65,1.0]
[1741157668149,20.41084443,143.67,143.65,1.0]
[1741157668350,109.17084443,143.68,143.66,1.0]
[1741157668544,81.8,143.68,143.67,1.0]
[1741157668979,20.44084443,143.7,143.67,1.0]
[1741157669186,0.03,143.7,143.69,1.0]
[1741157670970,20.44084443,143.7,143.69,1.0]
[1741157675666,0.03,143.7,143.69,1.0]
[1741157678252,0.03,143.7,143.69,134.92249329]
[1741157679078,10.86908042,143.76,143.75,1.0]
[1741157679853,10.86908042,143.76,143.75,27.71344443]
[1741157680048,10.86908042,143.76,143.75,134.91959329]
[1741157681683,8.14589463,143.78,143.77,22.213272]
[1741157681885,0.03,143.83,143.77,63.03496086]
[1741157682070,0.03,143.83,143.82,21.41084443]
[1741157682267,0.03,143.83,143.82,1.0]
[1741157682480,20.44084443,143.83,143.82,1.0]
[1741157682657,27.39344443,143.83,143.82,1.0]
[1741157682858,20.44084443,143.83,143.82,1.0]
[1741157683292,0.03,143.83,143.82,1.0]
[1741157685394,20.44084443,143.83,143.82,1.0]
[1741157686460,20.44084443,143.83,143.81,1.0]
[1741157686686,20.41084443,143.82,143.81,1.0]
[1741157686989,20.41084443,143.82,143.75,120.48984443]
[1741157686990,20.41084443,143.82,143.8,1.0]
[1741157687209,20.41084443,143.81,143.8,1.0]
[1741157687700,20.41084443,143.82,143.8,1.0]
[1741157687894,27.39354443,143.83,143.82,1.0]
[1741157688293,27.39354443,143.83,143.81,1.0]
[1741157688507,27.39354443,143.83,143.8,1.0]
[1741157688508,20.41084443,143.82,143.8,1.0]
[1741157688794,20.41084443,143.81,143.79,1.0]
[1741157689000,20.41084443,143.8,143.79,1.0]
[1741157689205,81.8,143.81,143.8,1.0]
[1741157689372,1.5425,143.83,143.82,1.0]
[1741157689577,0.03,143.83,143.82,1.0]
[1741157689910,20.44084443,143.83,143.82,1.0]
[1741157690071,81.8,143.82,143.8,1.0]
[1741157690270,20.41084443,143.81,143.8,1.0]
[1741157691876,27.36444443,143.81,143.8,1.0]
[1741157692405,20.41084443,143.81,143.8,1.0]
[1741157692904,27.36444443,143.81,143.8,1.0]
[1741157695484,20.41084443,143.81,143.8,1.0]
[1741157695888,0.03,143.83,143.82,1.0]
[1741157696809,0.03,143.83,143.82,7.9531]
[1741157697502,0.0001,143.83,143.82,272.55700675]
[1741157697674,0.0001,143.85,143.83,19.64964886]
[1741157697869,0.0001,143.85,143.84,21.41084443]
[1741157698076,0.0001,143.85,143.84,1.0]
[1741157698491,0.0001,143.85,143.84,21.41084443]
[1741157698803,0.0001,143.85,143.84,28.36294443]
[1741157699687,0.0001,143.85,143.84,21.41084443]
[1741157700788,0.0001,143.85,143.84,1.0]
[1741157701889,0.0001,143.85,143.84,28.36294443]
[1741157702094,0.0001,143.85,143.84,128.61259329]
[1741157703501,0.0001,143.85,143.84,109.96294443]
[1741157703703,0.0001,143.85,143.84,440.61259329]
[1741157704608,0.0001,143.85,143.84,103.01084443]
[1741157704905,0.0001,143.85,143.84,109.96294443]
[1741157705501,0.03,143.96,143.88,0.28432314]
[1741157705709,0.03,143.96,143.95,1.0]
[1741157705894,0.03,143.96,143.95,21.41084443]
[1741157706089,0.03,143.96,143.95,1.0]
[1741157706482,20.44084443,143.96,143.95,1.0]
[1741157707010,0.03,143.96,143.95,1.0]
[1741157713115,20.44084443,143.96,143.95,1.0]
[1741157713408,20.44084443,143.96,143.94,1.0]
[1741157713606,109.15764443,143.95,143.93,1.0]
[1741157713813,20.41084443,143.94,143.93,1.0]
[1741157714410,20.41084443,143.94,143.92,1.0]
[1741157714618,20.41084443,143.93,143.91,1.0]
[1741157714795,20.41084443,143.92,143.91,1.0]
[1741157716305,27.35904443,143.93,143.91,1.0]
[1741157716508,20.41084443,143.93,143.92,1.0]
[1741157717414,27.35864443,143.93,143.92,1.0]
[1741157718190,20.41084443,143.93,143.92,1.0]
[1741157718418,20.41084443,143.93,143.91,1.0]
[1741157718621,88.7475,143.94,143.92,1.0]
[1741157721310,20.41084443,143.93,143.92,1.0]
[1741157721509,109.15834443,143.94,143.92,1.0]
[1741157722623,20.41084443,143.93,143.92,1.0]
[1741157722810,20.69516757,143.93,143.91,1.0]
[1741157722998,20.41084443,143.92,143.91,1.0]
[1741157723199,6.9475,143.94,143.93,1.0]
[1741157723402,0.03,143.96,143.95,1.0]
[1741157728337,0.03,143.96,143.95,28.35764443]
[1741157728622,0.03,143.96,143.95,7.9468]
[1741157728925,0.03,143.96,143.95,1.0]
[1741157729721,0.03,143.96,143.95,252.30004443]
[1741157730108,0.03,143.96,143.95,270.94969329]
[1741157732028,0.03,143.96,143.95,582.94969329]
[1741157732730,0.03,143.96,143.95,270.94969329]
[1741157734307,0.03,143.96,143.95,225.7468]
[1741157734728,0.03,143.96,143.95,246.15764443]
[1741157734919,0.03,143.96,143.95,109.95764443]
[1741157736914,0.03,143.96,143.95,1.0]
[1741157738133,0.03,143.96,143.95,7.9468]
[1741157739014,0.03,143.96,143.95,1.0]
[1741157746441,20.44084443,143.96,143.95,1.0]
[1741157746646,21.99404443,143.96,143.95,1.0]
[1741157747347,1.5832,143.96,143.95,1.0]
[1741157747544,0.03,143.96,143.95,1.0]
[1741157749425,20.44084443,143.96,143.95,1.0]
[1741157749749,0.03,143.96,143.95,1.0]
[1741157750141,6.9763,143.96,143.95,1.0]
[1741157750859,0.03,143.96,143.95,89.5468]
[1741157751042,0.03,143.96,143.95,109.95764443]
[1741157752658,1.8971029,144.04,144.03,1.0]
[1741157752857,0.03,144.09,144.08,1.0]
[1741157753067,0.03,144.09,144.08,103.01084443]
[1741157753848,0.03,144.09,144.08,109.95134443]
[1741157754355,0.03,144.09,144.08,128.60099329]
[1741157755051,0.9399279,144.09,144.08,121.66049329]
[1741157755250,0.9399279,144.09,144.08,176.26049329]
[1741157756259,0.9399279,144.09,144.08,103.01084443]
[1741157756754,0.9399279,144.09,144.08,1.0]
[1741157758753,0.9399279,144.09,144.08,21.41084443]
[1741157760437,0.9399279,144.09,144.08,121.66049329]
[1741157760636,0.9399279,144.09,144.08,103.01084443]
[1741157761033,0.9399279,144.09,144.08,121.66049329]
[1741157761355,0.9399279,144.09,144.08,103.01084443]
[1741157762132,0.9399279,144.09,144.08,21.41084443]
[1741157762336,0.9399279,144.09,144.08,1.0]
[1741157763051,28.29087233,144.09,144.08,1.0]
[1741157763533,28.29087233,144.09,144.07,1.0]
[1741157763736,20.41084443,144.08,144.07,1.0]
[1741157764044,6.941,144.07,144.06,1.0]
[1741157764245,27.35184443,144.07,144.05,1.0]
[1741157764549,146.81242038,144.06,144.01,1.0]
[1741157764745,32.50621019,144.02,144.01,1.0]
[1741157765757,32.50621019,144.03,144.01,1.0]
[1741157765959,32.50621019,144.03,144.02,1.0]
[1741157766141,39.44911019,144.03,144.02,1.0]
[1741157768372,6.9429,144.03,144.02,1.0]
[1741157769163,39.44911019,144.03,144.02,1.0]
[1741157769344,39.44911019,144.03,144.01,1.0]
[1741157769537,32.50621019,144.02,144.01,1.0]
[1741157770972,39.44961019,144.02,144.0,1.0]
[1741157771140,32.50621019,144.01,143.99,1.0]
[1741157771745,114.30621019,144.01,143.99,1.0]
[1741157772547,114.30621019,144.01,144.0,0.033]
[1741157772759,121.25011019,144.01,144.0,0.033]
[1741157774644,81.8,144.01,144.0,1.033]
[1741157776165,88.7439,144.01,144.0,1.033]
[1741157777955,121.53443333,144.01,144.0,0.033]
[1741157779996,0.28432314,144.0,143.97,1.0]
[1741157780162,32.79053333,143.98,143.96,1.0]
[1741157780366,32.50621019,143.97,143.95,1.0]
[1741157780573,32.50621019,143.96,143.95,1.0]
[1741157781974,39.45251019,143.96,143.95,1.0]
[1741157782373,81.8,143.97,143.96,1.0]
[1741157782696,39.45021019,144.01,143.99,1.0]
[1741157783580,32.50621019,144.0,143.99,1.0]
[1741157784087,39.45021019,144.01,144.0,1.0]
[1741157785165,32.50621019,144.01,144.0,1.0]
[1741157785488,81.8,144.02,144.01,1.0]
[1741157785667,1.5668,144.03,144.02,1.0]
[1741157785883,0.9399279,144.04,144.03,1.0]
[1741157786952,21.24386972,144.04,144.02,1.0]
[1741157787165,20.30394182,144.03,144.02,1.0]
[1741157787381,28.18636972,144.04,144.03,1.0]
[1741157788484,0.9399279,144.04,144.03,1.0]
[1741157791490,7.8824279,144.04,144.03,1.0]
[1741157792588,7.8824279,144.04,144.02,1.0]
[1741157792589,40.37439143,144.04,144.02,1.0]
[1741157792884,40.37439143,144.04,144.03,1.0]
[1741157795097,40.37439143,144.04,144.02,1.0]
[1741157795278,32.49196353,144.03,144.02,1.0]
[1741157796293,40.37449143,144.04,144.02,1.0]
[1741157796588,40.37449143,144.04,144.03,1.0]
[1741157797485,0.9399279,144.04,144.03,1.0]
[1741157798994,7.8824279,144.04,144.03,1.0]
[1741157799785,40.37439143,144.04,144.02,1.0]
[1741157799991,32.49196353,144.03,144.02,1.0]
[1741157800791,39.43486353,144.03,144.02,1.0]
[1741157801500,39.43486353,144.03,144.01,1.0]
[1741157801794,32.49196353,144.02,144.0,1.033]
[1741157801995,32.49196353,144.01,144.0,1.033]
[1741157803097,39.43586353,144.01,144.0,1.033]
[1741157806191,39.72018667,144.01,144.0,1.033]
[1741157807273,39.43586353,144.01,144.0,1.033]
[1741157807478,32.49196353,144.03,144.01,1.0]
[1741157807795,6.9431,144.03,144.02,1.0]
[1741157807995,39.43506353,144.03,144.02,1.0]
[1741157808495,32.49196353,144.03,144.02,1.0]
[1741157808687,33.43189143,144.04,144.02,1.0]
[1741157808883,32.49196353,144.03,144.02,1.0]
[1741157810400,0.9399279,144.04,144.03,1.0]
[1741157811388,33.43189143,144.04,144.03,1.0]
[1741157812504,21.25221582,144.04,144.03,1.0]
[1741157813503,28.19501582,144.04,144.02,1.0]
[1741157813705,20.31228792,144.03,144.02,1.0]
[1741157814592,27.25518792,144.03,144.02,1.0]
[1741157814795,27.25518792,144.03,144.01,1.0]
[1741157814989,27.25518792,144.03,144.02,1.0]
[1741157815187,27.53951106,144.03,144.02,1.0]
[1741157815391,27.53951106,144.03,144.01,1.0]
[1741157815705,20.31228792,144.02,144.01,1.0]
[1741157816013,102.11228792,144.02,144.01,1.0]
[1741157816384,109.05568792,144.02,144.01,1.0]
[1741157816605,0.9399279,144.04,144.03,1.0]
[1741157817106,28.19471582,144.04,144.03,1.0]
[1741157817604,28.47903896,144.04,144.02,1.0]
[1741157817807,8.16675104,144.04,144.03,1.0]
[1741157818316,28.47903896,144.04,144.03,1.0]
[1741157818610,28.47903896,144.04,144.02,1.0]
[1741157818816,20.31228792,144.03,144.02,1.0]
[1741157819309,21.25221582,144.04,144.02,1.0]
[1741157819490,0.9399279,144.04,144.03,1.0]
[1741157822197,0.9399279,144.04,144.03,7.9429]
[1741157824817,0.9399279,144.04,144.03,1.0]
[1741157825720,28.19471582,144.04,144.03,1.0]
[1741157826218,0.9399279,144.04,144.03,1.0]
[1741157827315,0.9399279,144.04,144.03,7.9429]
[1741157827521,0.9399279,144.04,144.03,28.25518792]
[1741157830725,0.9399279,144.04,144.03,46.90483678]
[1741157833809,0.9399279,144.04,144.03,358.90483678]
[1741157834000,0.9399279,144.04,144.03,350.96193678]
[1741157834326,0.9399279,144.04,144.03,38.96193678]
[1741157835326,0.9399279,144.04,144.03,45.90483678]
[1741157835529,0.9399279,144.04,144.02,87.7804]
[1741157835707,0.9399279,144.04,144.02,108.09268792]
[1741157835906,0.9399279,144.04,144.02,26.49268792]
[1741157836506,0.9399279,144.04,144.0,0.033]
[1741157836706,7.8824279,144.04,144.0,0.033]
[1741157838420,7.8824279,144.04,143.99,18.31608792]
[1741157840209,0.9399279,144.04,144.0,20.31228792]
[1741157841728,20.31228792,144.03,143.98,20.31228792]
[1741157842638,27.25548792,144.03,143.98,20.31228792]
[1741157843618,6.9432,144.03,143.98,20.31228792]
[1741157843924,27.25548792,144.03,143.98,20.31228792]
[1741157844129,6.9432,144.03,143.99,20.31228792]
[1741157844711,0.9399279,144.04,143.99,20.31228792]
[1741157844926,0.9399279,144.04,144.0,20.31228792]
[1741157846823,7.8824279,144.04,144.0,20.31228792]
[1741157847016,28.19471582,144.04,143.99,0.033]
[1741157848713,20.31228792,144.01,143.99,0.033]
[1741157849811,27.25658792,144.01,143.99,0.033]
[1741157850446,102.39661106,144.0,143.99,0.033]
[1741157851538,81.8,144.0,143.99,0.033]
[1741157855920,1.6389,144.01,143.99,0.033]
[1741157856122,0.9399279,144.04,144.0,20.31228792]
[1741157856336,0.9399279,144.04,144.01,20.31228792]
[1741157856529,0.9399279,144.04,144.0,20.31228792]
[1741157857349,0.9399279,144.04,144.0,27.25668792]
[1741157858452,0.9399279,144.04,144.01,20.31228792]
[1741157858648,0.9399279,144.04,144.02,20.31228792]
[1741157859321,0.03,144.03,144.02,20.31228792]
[1741157859525,0.03,144.03,144.02,27.25568792]
[1741157861741,0.03,144.03,144.02,45.90533678]
[1741157862131,0.03,144.03,144.02,127.50533678]
[1741157862332,0.03,144.03,144.02,182.10533678]
[1741157862632,0.03,144.03,144.02,188.54463678]
[1741157865329,0.03,144.03,144.02,500.54463678]
[1741157865548,0.03,144.03,144.02,582.14463678]
[1741157866859,0.03,144.03,144.02,270.14463678]
[1741157869843,0.03,144.03,144.02,582.14463678]
[1741157870049,0.03,144.03,144.02,270.14463678]
[1741157870265,2.79e-05,144.04,144.03,18.64964886]
[1741157870458,0.03,144.09,144.08,25.13024886]
[1741157870459,0.0001,144.09,144.08,25.13024886]
[1741157870745,1.5569,144.2,144.11,6.9391]
[1741157870971,1.5569,144.2,144.15,20.31228792]
[1741157871151,1.5569,144.2,144.16,20.31228792]
[1741157871455,21.67098576,144.22,144.17,20.31228792]
[1741157871752,21.67098576,144.22,144.13,22.31228792]
[1741157871956,21.67098576,144.22,144.17,20.31228792]
[1741157872150,21.67098576,144.22,144.14,8.2279]
[1741157872340,21.67098576,144.22,144.17,58.96193678]
[1741157872857,21.67098576,144.22,144.17,65.89813678]
[1741157873062,21.67098576,144.22,144.17,20.31228792]
[1741157873257,21.67098576,144.22,144.16,20.31228792]
[1741157873755,21.67098576,144.22,144.17,20.31228792]
[1741157873954,21.67098576,144.22,144.17,38.96193678]
[1741157874256,1.5046,144.24,144.17,38.96193678]
[1741157874948,1.5046,144.24,144.17,45.89813678]
[1741157875654,1.5046,144.24,144.17,127.49813678]
[1741157876145,0.65068034,144.26,144.18,18.64964886]
[1741157876346,0.65068034,144.26,144.22,20.31228792]
[1741157876557,0.65068034,144.26,144.23,20.31228792]
[1741157876740,0.65068034,144.26,144.18,238.44964886]
[1741157876741,0.65068034,144.26,144.22,20.31228792]
[1741157877141,0.65068034,144.26,144.22,27.24558792]
[1741157877341,0.65068034,144.26,144.23,20.31228792]
[1741157878471,0.65068034,144.26,144.25,20.31228792]
[1741157878848,0.65068034,144.26,144.24,20.31228792]
[1741157879363,0.65068034,144.26,144.25,20.31228792]
[1741157879939,0.65068034,144.26,144.25,38.96193678]
[1741157880138,0.65068034,144.26,144.25,20.31228792]
[1741157881256,20.96296826,144.26,144.21,81.6]
[1741157881462,20.96296826,144.26,144.2,20.31228792]
[1741157881669,20.96296826,144.26,144.19,238.11228792]
[1741157882048,20.96296826,144.26,144.2,20.31228792]
[1741157882554,21.87688792,144.25,144.19,81.6]
[1741157882758,21.87688792,144.25,144.18,20.31228792]
[1741157883064,1.5646,144.25,144.19,20.31228792]
[1741157883362,1.5646,144.25,144.2,20.31228792]
[1741157884766,21.87688792,144.25,144.19,20.31228792]
[1741157885979,28.80928792,144.25,144.19,20.31228792]
[1741157886569,20.31228792,144.24,144.18,20.31228792]
[1741157886863,8.497,144.25,144.19,20.31228792]
[1741157887070,20.31228792,144.24,144.18,20.31228792]
[1741157887662,20.31228792,144.23,144.16,136.2]
[1741157887869,20.31228792,144.21,144.15,20.31228792]
[1741157888077,20.31228792,144.21,144.15,101.91228792]
[1741157888577,20.31228792,144.2,144.15,81.6]
[1741157888869,20.31228792,144.2,144.14,20.31228792]
[1741157889667,6.9352,144.19,144.14,20.31228792]
[1741157890278,1.6387,144.18,144.13,101.91228792]
[1741157890450,21.95098792,144.18,144.13,81.6]
[1741157890769,20.31228792,144.17,144.12,20.31228792]
[1741157891067,20.31228792,144.17,144.11,101.91228792]
[1741157891271,20.31228792,144.17,144.11,20.31228792]
[1741157892072,6.9362,144.17,144.12,20.31228792]
[1741157892672,27.24848792,144.17,144.12,20.31228792]
[1741157893504,20.31228792,144.16,144.1,20.31228792]
[1741157894272,27.24928792,144.16,144.1,20.31228792]
[1741157895067,20.31228792,144.16,144.11,20.31228792]
[1741157895287,81.8,144.17,144.13,20.31228792]
[1741157895567,1.6387,144.18,144.13,20.31228792]
[1741157895873,1.6387,144.18,144.14,20.31228792]
[1741157896262,1.6387,144.18,144.1,412.24964886]
[1741157896467,21.95098792,144.18,144.12,18.64964886]
[1741157896668,21.95098792,144.18,144.13,20.31228792]
[1741157896870,1.6387,144.18,144.13,20.31228792]
[1741157897374,28.88688792,144.18,144.12,101.91228792]
[1741157897677,20.31228792,144.17,144.12,81.6]
[1741157898554,6.9367,144.16,144.12,81.6]
[1741157898753,27.24898792,144.16,144.12,81.6]
[1741157898973,27.24898792,144.16,144.1,20.34528792]
[1741157899187,6.9367,144.16,144.11,20.31228792]
[1741157903274,6.9367,144.16,144.1,6.9724]
[1741157903275,20.31228792,144.13,144.1,0.033]
[1741157903869,81.8,144.15,144.1,0.033]
[1741157904279,20.31228792,144.14,144.1,0.033]
[1741157904576,20.31228792,144.13,144.1,0.033]
[1741157905472,6.9381,144.13,144.1,0.033]
[1741157907691,20.31228792,144.13,144.1,0.033]
[1741157907872,21.94708792,144.12,144.1,0.033]
[1741157908783,1.6348,144.12,144.1,0.033]
[1741157912072,8.5734,144.12,144.1,0.033]
[1741157912274,1.6348,144.12,144.1,0.033]
[1741157918792,8.5366,144.17,144.11,20.31228792]
[1741157918995,8.5366,144.17,144.12,20.31228792]
[1741157921197,28.84888792,144.17,144.12,20.31228792]
[1741157926500,21.51297392,144.17,144.12,12.97637392]
[1741157929101,21.51297392,144.17,144.11,19.91547392]
[1741157931203,12.97637392,144.12,144.1,0.033]
[1741157931695,12.97637392,144.13,144.1,0.033]
[1741157932288,12.97637392,144.14,144.1,0.033]
[1741157932486,81.8,144.15,144.1,13.00937392]
[1741157933604,6.9372,144.15,144.1,13.00937392]
[1741157933807,6.9372,144.15,144.11,12.97637392]
[1741157933994,6.9372,144.15,144.12,18.64964886]
[1741157934199,0.03,144.18,144.13,12.97637392]
[1741157934803,0.03,144.18,144.14,12.97637392]
[1741157935407,0.03,144.18,144.13,12.97637392]
[1741157935702,0.03,144.18,144.13,19.91437392]
[1741157936885,0.03,144.18,144.14,12.97637392]
[1741157938517,0.03,144.18,144.14,20.270184]
[1741157938900,0.03,144.18,144.13,20.270184]
[1741157939094,20.300184,144.18,144.13,20.270184]
[1741157940289,27.235984,144.18,144.13,20.270184]
[1741157940487,20.300184,144.18,144.13,108.808284]
[1741157940689,0.03,144.18,144.16,20.270184]
[1741157941505,0.03,144.18,144.15,20.270184]
[1741157943291,0.03,144.18,144.16,20.270184]
[1741157943488,0.03,144.18,144.15,20.270184]
[1741157944088,0.03,144.18,144.11,144.172]
[1741157944089,20.300184,144.18,144.12,20.270184]
[1741157944289,20.300184,144.18,144.11,225.772]
[1741157944290,20.270184,144.15,144.11,0.033]
[1741157944514,20.270184,144.13,144.11,0.033]
[1741157945000,6.9386,144.12,144.11,0.033]
[1741157949913,27.208784,144.12,144.11,0.033]
[1741157952311,27.49310714,144.12,144.11,0.033]
[1741157954721,109.29310714,144.12,144.11,0.033]
[1741157956095,81.19480714,144.11,144.01,81.6]
[1741157956302,20.270184,144.06,144.01,81.6]
[1741157956814,20.270184,144.05,144.01,81.6]
[1741157957403,20.270184,144.06,144.01,81.6]
[1741157957609,20.270184,144.06,144.01,101.870184]
[1741157958214,27.211684,144.06,144.01,101.870184]
[1741157958520,20.270184,144.07,144.01,108.814084]
[1741157958707,109.011084,144.08,144.02,20.270184]
[1741157959322,109.011084,144.08,144.03,20.270184]
[1741157959895,109.011084,144.08,144.02,20.270184]
[1741157960394,20.270184,144.07,144.02,20.270184]
[1741157961041,109.011084,144.08,144.03,20.270184]
[1741157961198,81.8,144.08,144.04,20.270184]
[1741157961404,109.009884,144.1,144.04,20.270184]
[1741157962305,102.070184,144.1,144.05,20.270184]
[1741157962909,20.270184,144.1,144.04,20.270184]
[1741157963115,20.270184,144.1,144.04,27.212284]
[1741157963116,27.209784,144.1,144.04,27.212284]
[1741157963526,20.270184,144.07,144.02,101.870184]
[1741157963910,20.270184,144.06,144.01,27.213884]
[1741157964114,20.270184,144.06,144.01,6.9437]
[1741157964517,20.270184,144.06,144.0,115.108684]
[1741157964725,20.270184,144.06,144.01,20.270184]
[1741157965113,20.270184,144.06,144.01,27.214084]
[1741157965316,27.211784,144.06,144.01,27.214084]
[1741157966729,27.211584,144.07,144.01,27.214084]
[1741157967234,20.270184,144.06,144.01,20.270184]
[1741157968033,27.210884,144.08,144.02,20.270184]
[1741157968731,20.270184,144.06,144.0,26.564384]
[1741157968934,27.210884,144.08,144.02,20.270184]
[1741157969137,27.210884,144.08,144.03,20.270184]
[1741157969332,20.270184,144.07,144.02,20.270184]
[1741157969532,20.270184,144.07,144.01,20.270184]
[1741157970138,20.270184,144.06,144.0,115.108684]
[1741157971621,20.270184,144.06,144.0,108.164384]
[1741157971622,6.942,144.05,144.0,108.164384]
[1741157974045,20.270184,144.03,144.0,0.033]
[1741157974544,13.00211989,144.03,144.0,0.033]
[1741157975939,19.94551989,144.02,144.0,0.033]
[1741157976139,13.00211989,144.01,144.0,0.033]
[1741157976745,20.32085927,144.01,144.0,0.033]
[1741157977546,27.26475927,144.01,144.0,0.033]
[1741157978141,6.9439,144.01,144.0,0.033]
[1741157978443,27.26475927,144.01,144.0,0.033]
[1741157980048,81.8,144.03,144.0,0.033]
[1741157980348,27.26445927,144.02,144.0,0.033]
[1741157981143,88.743,144.03,144.0,0.033]
[1741157981344,81.8,144.03,144.0,0.033]